bitfinex-derivatives/quotes_BTCF0:USTF0_20251202
["timestamp","ask_amount","ask_price","bid_price","bid_amount"]
[1764703471121,0.4297714,91967.0,91966.0,0.05778184]
[1764703473030,0.4297714,91967.0,91966.0,0.03017184]
[1764703473432,0.4297714,91967.0,91966.0,0.05968184]
[1764703474324,0.4297714,91967.0,91952.0,0.0558714]
[1764703474325,0.0295,91956.0,91952.0,0.0390014]
[1764703474527,0.0295,91956.0,91952.0,0.05569]
[1764703474528,0.05876,91953.0,91952.0,0.05569]
[1764703475524,0.05876,91953.0,91952.0,0.05869]
[1764703477834,0.05876,91953.0,91952.0,0.03154]
[1764703478031,0.05876,91953.0,91952.0,0.05869]
[1764703478529,0.05876,91953.0,91952.0,0.41949]
[1764703478733,0.01432311,91962.0,91961.0,0.0665622]
[1764703478734,0.00016311,91962.0,91961.0,0.0665622]
[1764703479035,0.41956,91981.0,91980.0,0.05569]
[1764703480829,0.42056,91981.0,91980.0,0.05569]
[1764703481228,0.42056,91981.0,91980.0,0.02854]
[1764703481422,0.0696304,91976.0,91975.0,0.0394105]
[1764703481628,0.0696304,91976.0,91975.0,0.0665605]
[1764703482527,0.0706304,91976.0,91975.0,0.0665605]
[1764703483128,0.0716304,91976.0,91975.0,0.0665605]
[1764703483325,0.06076,91976.0,91975.0,0.0665605]
[1764703484636,0.002,91976.0,91975.0,0.0665605]
[1764703485148,0.0315,91976.0,91975.0,0.0665605]
[1764703485323,0.002,91976.0,91975.0,0.0665605]
[1764703485937,0.001,91976.0,91975.0,0.0665605]
[1764703486133,0.001,91976.0,91975.0,0.0675605]
[1764703486335,0.0403702,91978.0,91977.0,0.05569]
[1764703487934,0.05876,91978.0,91977.0,0.05569]
[1764703493643,0.3903,91981.0,91980.0,0.07241]
[1764703493843,0.41956,91981.0,91980.0,0.0832799]
[1764703495042,0.3608,91981.0,91980.0,0.0832799]
[1764703495234,0.3618,91981.0,91980.0,0.0832799]
[1764703495436,0.001,91981.0,91980.0,0.4440799]
[1764703495636,0.002,91981.0,91980.0,0.4440799]
[1764703496347,0.001,91981.0,91980.0,0.4440799]
[1764703496547,0.05892311,91990.0,91989.0,0.05569]
[1764703496842,0.06979181,91990.0,91989.0,0.0665588]
[1764703497947,0.07079181,91990.0,91989.0,0.0665588]
[1764703498844,0.07179181,91990.0,91989.0,0.0665588]
[1764703500351,0.06092311,91990.0,91989.0,0.0665588]
[1764703500950,0.00216311,91990.0,91989.0,0.0665588]
[1764703501252,0.06092311,91990.0,91989.0,0.0665588]
[1764703502142,0.05992311,91990.0,91989.0,0.0665588]
[1764703502654,0.05892311,91990.0,91989.0,0.0665588]
[1764703502850,0.05992311,91990.0,91989.0,0.0665588]
[1764703503641,0.00116311,91990.0,91989.0,0.0665588]
[1764703504042,0.00027172,92006.0,92005.0,0.05556]
[1764703504342,0.00027172,92006.0,92005.0,0.56112]
[1764703505242,0.00027172,92006.0,92005.0,0.56312]
[1764703506143,0.00127172,92006.0,92005.0,0.57012]
[1764703508248,0.3608,92023.0,92005.0,0.57012]
[1764703508249,0.07378,92034.0,92033.0,0.0664236]
[1764703508853,0.07378,92034.0,92033.0,0.05556]
[1764703509256,0.07378,92034.0,92024.0,0.16123598]
[1764703509257,0.0676046,92025.0,92024.0,0.216959]
[1764703509460,0.05674,92025.0,92024.0,0.05572302]
[1764703509753,0.05674,92025.0,92024.0,0.06655679]
[1764703510054,0.05674,92025.0,92024.0,0.00016302]
[1764703510257,0.05674,92025.0,92024.0,0.00516302]
[1764703510258,0.05774,92025.0,92024.0,0.00516302]
[1764703510742,0.20674,92025.0,92024.0,0.00116302]
[1764703510943,0.20774,92025.0,92024.0,0.00116302]
[1764703511354,0.05774,92025.0,92024.0,0.00116302]
[1764703511649,0.0676088,91989.0,91988.0,0.02846]
[1764703511857,0.05674,91982.0,91981.0,0.0664298]
[1764703512056,0.02849,91982.0,91981.0,0.0664298]
[1764703512554,0.05674,91982.0,91981.0,0.0664298]
[1764703512752,0.05674,91982.0,91981.0,0.07712881]
[1764703512953,0.05774,91982.0,91981.0,0.07712881]
[1764703513354,0.05674,91982.0,91981.0,0.07712881]
[1764703513554,0.05774,91982.0,91981.0,0.07712881]
[1764703513756,0.05774,91982.0,91981.0,0.0664298]
[1764703513757,0.41854,91982.0,91981.0,0.0664298]
[1764703514159,0.0676101,91978.0,91977.0,0.0664302]
[1764703514460,0.0676101,91978.0,91977.0,0.0393302]
[1764703514853,0.05674,91978.0,91977.0,0.0393302]
[1764703515051,0.05674,91978.0,91977.0,0.0396181]
[1764703515249,0.05674,91975.0,91974.0,0.0393306]
[1764703515855,0.05674,91975.0,91974.0,0.0664306]
[1764703516160,0.05674,91975.0,91974.0,0.0771866]
[1764703516544,0.05874,91975.0,91974.0,0.066316]
[1764703516750,0.05874,91975.0,91972.0,0.00016302]
[1764703516751,0.05674,91973.0,91972.0,0.00016302]
[1764703516950,0.41754,91973.0,91972.0,0.00016302]
[1764703517150,0.41754,91973.0,91972.0,0.02862302]
[1764703517850,0.41854,91973.0,91972.0,0.00016302]
[1764703518054,0.41854,91973.0,91972.0,0.01103382]
[1764703518261,0.41854,91973.0,91972.0,0.03949382]
[1764703518658,0.42054,91973.0,91972.0,0.03949382]
[1764703519159,0.41854,91973.0,91972.0,0.03949382]
[1764703519362,0.42154,91973.0,91972.0,0.03949382]
[1764703519857,0.42154,91973.0,91972.0,0.06659382]
[1764703519858,0.004,91973.0,91972.0,0.06659382]
[1764703520949,0.003,91973.0,91972.0,0.01103382]
[1764703522560,0.01087,91980.0,91979.0,0.01087]
[1764703523460,0.3608,91982.0,91979.0,0.01087]
[1764703523661,0.001,91980.0,91979.0,0.01087]
[1764703524459,0.3608,91982.0,91979.0,0.01087]
[1764703524664,0.3618,91982.0,91979.0,0.01087]
[1764703525363,0.003,91980.0,91979.0,0.01087]
[1764703525760,0.3618,91982.0,91979.0,0.01087]
[1764703525961,0.3628,91982.0,91979.0,0.01087]
[1764703526165,0.3618,91982.0,91981.0,0.05718]
[1764703526363,0.3608,91982.0,91981.0,0.05718]
[1764703526959,0.05742302,91991.0,91990.0,0.0695687]
[1764703529265,0.05942302,91991.0,91990.0,0.0695687]
[1764703529463,0.0108697,91984.0,91983.0,0.069569]
[1764703529661,0.0681297,91984.0,91983.0,0.069569]
[1764703529867,0.4289297,91984.0,91983.0,0.02998]
[1764703530063,0.4289297,91984.0,91981.0,0.0108697]
[1764703530267,0.05726,91982.0,91981.0,0.0108697]
[1764703530470,0.05726,91982.0,91981.0,0.0408497]
[1764703530861,0.05726,91982.0,91981.0,0.0695697]
[1764703532164,0.05926,91982.0,91981.0,0.0695697]
[1764703532559,0.0681301,91978.0,91977.0,0.08786855]
[1764703532767,0.0681301,91978.0,91977.0,0.02998]
[1764703532968,0.0681301,91978.0,91977.0,0.0587]
[1764703533872,0.0691301,91978.0,91977.0,0.0587]
[1764703534362,0.05769,91977.0,91976.0,0.0400804]
[1764703534559,0.05769,91977.0,91976.0,0.05751]
[1764703536262,0.05869,91977.0,91976.0,0.05751]
[1764703536474,0.0695603,91977.0,91976.0,0.05751]
[1764703536864,0.05869,91977.0,91976.0,0.05751]
[1764703537164,0.03133,91977.0,91976.0,0.05751]
[1764703537366,0.002,91977.0,91976.0,0.05751]
[1764703537562,0.002,91977.0,91976.0,0.41831]
[1764703537767,0.003,91977.0,91976.0,0.41831]
[1764703537969,0.003,91977.0,91976.0,0.44747855]
[1764703538268,0.003,91977.0,91976.0,0.41831]
[1764703538975,0.002,91977.0,91976.0,0.41831]
[1764703539174,0.001,91977.0,91976.0,0.41831]
[1764703540271,0.001,91977.0,91976.0,0.45717287]
[1764703540971,0.0401994,91985.0,91984.0,0.05842]
[1764703541177,0.05784,91985.0,91984.0,0.0692894]
[1764703541966,0.05884,91985.0,91984.0,0.0692894]
[1764703542164,0.05884,91985.0,91984.0,0.09852775]
[1764703542363,0.06084,91985.0,91984.0,0.09852775]
[1764703545069,0.06084,91985.0,91984.0,0.0692894]
[1764703547578,0.003,91985.0,91984.0,0.0692894]
[1764703547974,0.03032,91985.0,91984.0,0.0692894]
[1764703548174,0.05883,91985.0,91984.0,0.0692894]
[1764703548371,0.05883,91985.0,91984.0,0.0985309]
[1764703548779,0.05583,91985.0,91984.0,0.0692894]
[1764703549085,0.05683,91985.0,91984.0,0.0692894]
[1764703549582,0.02832,91985.0,91984.0,0.4300894]
[1764703549777,0.001,91985.0,91984.0,0.46895227]
[1764703550378,0.05599302,91991.0,91990.0,0.0672687]
[1764703550579,0.05599302,91991.0,91990.0,0.09649719]
[1764703551490,0.05799302,91991.0,91990.0,0.09649719]
[1764703551983,0.02948302,91991.0,91990.0,0.09649719]
[1764703552184,0.03048302,91991.0,91990.0,0.0672687]
[1764703552700,0.05899302,91991.0,91990.0,0.0672687]
[1764703553178,0.05699302,91991.0,91990.0,0.0672687]
[1764703553373,0.05899302,91991.0,91990.0,0.0672687]
[1764703554287,0.00316302,91991.0,91990.0,0.0672687]
[1764703555187,0.00316302,91991.0,91990.0,0.10623964]
[1764703555391,0.07322,92008.0,92007.0,0.0672667]
[1764703555986,0.05583,92008.0,92007.0,0.0672667]
[1764703556984,0.05883,92008.0,92007.0,0.0672667]
[1764703557382,0.05983,92008.0,92007.0,0.0672667]
[1764703560581,0.0706966,92008.0,92007.0,0.02719]
[1764703560888,0.0666975,92000.0,91999.0,0.0672675]
[1764703561690,0.0666975,92000.0,91999.0,0.0108675]
[1764703562091,0.05583,91999.0,91998.0,0.50564302]
[1764703562292,0.05583,91999.0,91998.0,0.51651082]
[1764703562698,0.05583,91999.0,91998.0,0.50564302]
[1764703563284,0.05683,91999.0,91998.0,0.50564302]
[1764703563486,0.05783,91999.0,91998.0,0.50564302]
[1764703563883,0.05883,91999.0,91998.0,0.50564302]
[1764703564284,0.05783,91999.0,91998.0,0.50564302]
[1764703565286,0.05583,91999.0,91998.0,0.50564302]
[1764703565485,0.05583,91999.0,91998.0,0.50764302]
[1764703565694,0.41663,91999.0,91998.0,0.00216302]
[1764703565996,0.41663,91999.0,91998.0,0.03081302]
[1764703566395,0.41663,91999.0,91998.0,0.06492302]
[1764703566588,0.41663,91999.0,91998.0,0.06392302]
[1764703566789,0.41663,91999.0,91998.0,0.06592302]
[1764703566988,0.41663,91999.0,91998.0,0.06492302]
[1764703567389,0.41663,91999.0,91998.0,0.07379082]
[1764703568090,0.41663,91999.0,91998.0,0.09153082]
[1764703568295,0.41663,91999.0,91998.0,0.08553082]
[1764703568494,0.05514,92008.0,92007.0,0.0676267]
[1764703568688,0.0660066,92008.0,92007.0,0.0676267]
[1764703570201,0.0660066,92008.0,92007.0,0.0696267]
[1764703571085,0.05514,92008.0,92007.0,0.4304267]
[1764703571286,0.00016302,92017.0,92016.0,0.0829657]
[1764703571489,0.0584136,92034.0,92033.0,0.05676]
[1764703571490,0.05514,92034.0,92033.0,0.05676]
[1764703571698,0.4268028,92040.0,92039.0,0.0676229]
[1764703572092,0.41594,92040.0,92039.0,0.0676229]
[1764703572292,0.4268028,92040.0,92039.0,0.0676229]
[1764703572492,0.4268028,92040.0,92039.0,0.05676]
[1764703573090,0.0660035,92034.0,92033.0,0.05976]
[1764703573287,0.4160035,92034.0,92033.0,0.003]
[1764703573487,0.4160035,92034.0,92030.0,0.00016302]
[1764703573488,0.0660039,92031.0,92030.0,0.00016302]
[1764703573688,0.4268039,92031.0,92030.0,0.00016302]
[1764703575088,0.5668039,92031.0,92030.0,0.00316302]
[1764703575290,0.4268039,92031.0,92030.0,0.00316302]
[1764703575488,0.4268039,92031.0,92030.0,0.00416302]
[1764703576494,0.41594,92031.0,92030.0,0.06092302]
[1764703576699,0.05514,92031.0,92030.0,0.06092302]
[1764703576900,0.41594,92031.0,92030.0,0.06092302]
[1764703578107,0.02767,92031.0,92030.0,0.06092302]
[1764703579705,0.371663,92039.0,92038.0,0.05676]
[1764703579706,0.41594,92039.0,92038.0,0.05676]
[1764703581203,0.41594,92039.0,92030.0,0.00416302]
[1764703581204,0.0108635,92034.0,92033.0,0.05676]
[1764703581504,0.0108635,92034.0,92030.0,0.00116302]
[1764703581505,0.0660039,92031.0,92030.0,0.00116302]
[1764703581705,0.0660039,92031.0,92030.0,0.00016302]
[1764703581706,0.7568039,92031.0,92030.0,0.00016302]
[1764703582006,0.4268039,92031.0,92030.0,0.00016302]
[1764703582604,0.4268039,92031.0,92030.0,0.00116302]
[1764703583009,0.4268039,92031.0,92030.0,0.00316302]
[1764703583405,0.05514,92005.0,92004.0,0.0676271]
[1764703583615,0.41594,92011.0,92010.0,0.0676264]
[1764703585512,0.05514,92011.0,92010.0,0.0696264]
[1764703585700,0.02767,92011.0,92010.0,0.0696264]
[1764703585902,0.41610302,92020.0,92019.0,0.0676253]
[1764703587606,0.41610302,92020.0,92019.0,0.05676]
[1764703587812,0.41610302,92020.0,92019.0,0.05776]
[1764703587999,0.41610302,92020.0,92019.0,0.06076]
[1764703588201,0.41610302,92020.0,92019.0,0.03165]
[1764703588404,0.41610302,92020.0,92019.0,0.004]
[1764703588599,0.56610302,92020.0,92019.0,0.004]
[1764703588805,0.41610302,92020.0,92019.0,0.004]
[1764703590217,0.41610302,92020.0,92019.0,0.06076]
[1764703590814,0.05530302,92020.0,92019.0,0.06076]
[1764703592302,0.41610302,92020.0,92019.0,0.06076]
[1764703593314,0.41610302,92020.0,92019.0,0.0716253]
[1764703593714,0.41610302,92020.0,92019.0,0.06076]
[1764703596702,0.05530302,92020.0,92019.0,0.06076]
[1764703599513,0.00016302,92020.0,92019.0,0.06076]
[1764703601417,0.00016302,92020.0,92019.0,0.08994027]
[1764703602815,0.00016302,92020.0,92019.0,0.06076]
[1764703603417,0.05973,92038.0,92037.0,0.0673032]
[1764703605622,0.06473,92038.0,92037.0,0.0673032]
[1764703606020,0.06573,92038.0,92037.0,0.0673032]
[1764703606613,0.006,92038.0,92037.0,0.0673032]
[1764703606909,0.00016302,92047.0,92046.0,0.0673021]
[1764703607321,0.02994302,92047.0,92046.0,0.0673021]
[1764703608113,0.02994302,92047.0,92046.0,0.0693021]
[1764703608319,0.00016302,92047.0,92046.0,0.0693021]
[1764703609023,0.00016302,92047.0,92046.0,0.0703021]
[1764703609426,0.02994302,92047.0,92046.0,0.0703021]
[1764703609624,0.05989302,92047.0,92046.0,0.0703021]
[1764703610823,0.05989302,92047.0,92046.0,0.3836621]
[1764703611027,0.02994302,92047.0,92046.0,0.3836621]
[1764703611211,0.00016302,92047.0,92046.0,0.3836621]
[1764703614120,0.0108597,92067.0,92066.0,0.0108598]
[1764703614324,0.0705893,92070.0,92069.0,0.0108593]
[1764703614625,0.0705899,92067.0,92066.0,0.0390897]
[1764703615031,0.0705899,92067.0,92066.0,0.02823]
[1764703615235,0.0705899,92067.0,92066.0,0.02923]
[1764703615724,0.05973,92067.0,92066.0,0.05744]
[1764703618434,0.05973,92067.0,92066.0,0.02923]
[1764703619128,0.05973,92067.0,92066.0,0.001]
[1764703619721,0.05973,92067.0,92066.0,0.02923]
[1764703619921,0.05973,92067.0,92066.0,0.05744]
[1764703620327,0.05973,92067.0,92066.0,0.0682998]
[1764703620943,0.05989292,92076.0,92075.0,0.0672987]
[1764703621234,0.05989292,92076.0,92075.0,0.05644]
[1764703621824,0.02994292,92076.0,92075.0,0.05644]
[1764703622130,0.00016292,92076.0,92075.0,0.05644]
[1764703622635,0.0108556,92102.0,92085.0,0.0827175]
[1764703622822,0.03005149,92086.0,92085.0,0.0827175]
[1764703623022,0.05873149,92086.0,92085.0,0.0827175]
[1764703624229,0.05873149,92086.0,92085.0,0.0847175]
[1764703624429,0.05873149,92086.0,92085.0,0.0857175]
[1764703625433,0.00027149,92086.0,92085.0,0.0857175]
[1764703625636,0.0001071,92095.0,92094.0,0.0677465]
[1764703626230,0.0586371,92095.0,92094.0,0.05689]
[1764703626634,0.0001071,92095.0,92086.0,0.0677474]
[1764703626834,0.05853,92087.0,92086.0,0.05689]
[1764703627029,0.0693874,92086.0,92085.0,0.001]
[1764703627342,0.05853,92077.0,92076.0,0.06791142]
[1764703628036,0.05853,92077.0,92076.0,0.05705292]
[1764703628243,0.34853,92077.0,92076.0,0.02911292]
[1764703628437,0.05853,92077.0,92076.0,0.05705292]
[1764703628832,0.02985,92077.0,92076.0,0.05705292]
[1764703629048,0.05853,92084.0,92083.0,0.05689]
[1764703629543,0.05853,92084.0,92083.0,0.0677478]
[1764703630246,0.05853,92084.0,92083.0,0.05689]
[1764703630540,0.05853,92084.0,92083.0,0.003]
[1764703632949,0.05853,92084.0,92083.0,0.05989]
[1764703633448,0.05853,92084.0,92083.0,0.03195]
[1764703634244,0.05853,92084.0,92083.0,0.003]
[1764703634635,0.16853,92084.0,92083.0,0.003]
[1764703635037,0.05853,92084.0,92083.0,0.003]
[1764703635433,0.20853,92084.0,92083.0,0.003]
[1764703635632,0.05853,92084.0,92083.0,0.003]
[1764703637635,0.05853,92084.0,92083.0,0.05989]
[1764703640947,0.0586371,92095.0,92094.0,0.05689]
[1764703642348,0.0586371,92095.0,92094.0,0.05789]
[1764703642754,0.0586371,92095.0,92094.0,0.05889]
[1764703645651,0.0586371,92095.0,92094.0,0.002]
[1764703647735,0.0694934,92095.0,92094.0,0.002]
[1764703647950,0.1994934,92095.0,92094.0,0.002]
[1764703648349,0.0693881,92080.0,92079.0,0.02915995]
[1764703648648,0.02985,92080.0,92079.0,0.0677482]
[1764703648853,0.0001071,92095.0,92086.0,0.05689]
[1764703648854,0.0693873,92087.0,92086.0,0.05689]
[1764703649240,0.0693885,92077.0,92076.0,0.08622399]
[1764703649544,0.0693885,92077.0,92076.0,0.05705292]
[1764703650244,0.0693885,92077.0,92076.0,0.05805292]
[1764703650646,0.0693885,92077.0,92076.0,0.06105292]
[1764703651042,0.0693885,92077.0,92076.0,0.09022399]
[1764703651354,0.05853,92077.0,92076.0,0.09022399]
[1764703651545,0.17168441,92090.0,92089.0,0.05689]
[1764703651546,0.05853,92090.0,92089.0,0.05689]
[1764703652851,0.0693869,92090.0,92089.0,0.05889]
[1764703653361,0.05853,92090.0,92089.0,0.069747]
[1764703653657,0.0585371,92095.0,92094.0,0.0678965]
[1764703654851,0.0585371,92095.0,92094.0,0.0688965]
[1764703655646,0.0585371,92095.0,92094.0,0.0698965]
[1764703657448,0.0585371,92095.0,92094.0,0.05904]
[1764703657954,0.0585371,92095.0,92094.0,0.002]
[1764703659257,0.0585371,92095.0,92094.0,0.02946]
[1764703659462,0.0585371,92095.0,92094.0,0.05748]
[1764703663765,0.0585371,92095.0,92094.0,0.07442]
[1764703664159,0.0585371,92095.0,92094.0,0.02946]
[1764703664364,0.0585371,92095.0,92094.0,0.05748]
[1764703664550,0.0585371,92095.0,92094.0,0.0852765]
[1764703664755,0.0693934,92095.0,92094.0,0.0852765]
[1764703665166,0.0693934,92095.0,92094.0,0.07442]
[1764703666453,0.0693934,92095.0,92094.0,0.0852765]
[1764703667458,0.0693934,92095.0,92094.0,0.07442]
[1764703667767,0.0693934,92095.0,92094.0,0.03114]
[1764703668866,0.0693934,92095.0,92094.0,0.002]
[1764703670267,0.0693934,92095.0,92094.0,0.03114]
[1764703670468,0.0001071,92095.0,92094.0,0.0761]
[1764703670970,0.0278371,92095.0,92094.0,0.10533513]
[1764703671363,0.0573871,92095.0,92094.0,0.10533513]
[1764703671967,0.0573871,92095.0,92094.0,0.05916]
[1764703672158,0.0573871,92095.0,92094.0,0.06116]
[1764703673770,0.0682434,92095.0,92094.0,0.06116]
[1764703674067,0.0682434,92095.0,92094.0,0.004]
[1764703674373,0.0573871,92095.0,92094.0,0.06116]
[1764703674961,0.0573871,92095.0,92094.0,0.004]
[1764703674962,0.2173871,92095.0,92094.0,0.004]
[1764703675358,0.0573871,92095.0,92094.0,0.004]
[1764703675970,0.0573871,92095.0,92094.0,0.003]
[1764703676272,0.0573871,92095.0,92094.0,0.004]
[1764703677174,0.0573871,92095.0,92094.0,0.003]
[1764703677475,0.0573871,92095.0,92094.0,0.004]
[1764703677968,0.0573871,92095.0,92094.0,0.003]
[1764703678175,0.0573871,92095.0,92094.0,0.004]
[1764703679660,0.0573871,92095.0,92094.0,0.03214]
[1764703679868,0.0573871,92095.0,92094.0,0.004]
[1764703680576,0.0682434,92095.0,92094.0,0.004]
[1764703680774,0.0108569,92090.0,92089.0,0.02923513]
[1764703680978,0.0681385,92077.0,92076.0,0.03907666]
[1764703681272,0.0681385,92077.0,92076.0,0.00016292]
[1764703682269,0.0721385,92077.0,92076.0,0.00016292]
[1764703682469,0.2221385,92077.0,92076.0,0.00016292]
[1764703682674,0.0681385,92077.0,92076.0,0.00316292]
[1764703682874,0.2081385,92077.0,92076.0,0.00316292]
[1764703683177,0.0681385,92077.0,92076.0,0.00316292]
[1764703683473,0.05728,92077.0,92076.0,0.06389292]
[1764703683881,0.05728,92077.0,92076.0,0.00416292]
[1764703684561,0.05728,92077.0,92076.0,0.00216292]
[1764703685182,0.05728,92077.0,92076.0,0.00316292]
[1764703685566,0.05728,92077.0,92076.0,0.00216292]
[1764703685766,0.05728,92077.0,92076.0,0.00316292]
[1764703686477,0.22728,92077.0,92076.0,0.00316292]
[1764703686779,0.05728,92077.0,92076.0,0.00316292]
[1764703687877,0.05728,92077.0,92076.0,0.00116292]
[1764703688175,0.05728,92077.0,92076.0,0.00316292]
[1764703688577,0.05728,92077.0,92076.0,0.00216292]
[1764703688770,0.05728,92077.0,92076.0,0.00316292]
[1764703689171,0.19728,92077.0,92076.0,0.00316292]
[1764703689880,0.05728,92077.0,92076.0,0.00316292]
[1764703690680,0.05728,92077.0,92076.0,0.03294292]
[1764703690885,0.05728,92077.0,92076.0,0.00316292]
[1764703691082,0.05728,92077.0,92076.0,0.03294292]
[1764703691567,0.05728,92077.0,92076.0,0.06289292]
[1764703691772,0.05935,92088.0,92087.0,0.0705873]
[1764703691974,0.05935,92088.0,92087.0,0.05973]
[1764703693074,0.0594571,92095.0,92094.0,0.05973]
[1764703693273,0.0594571,92095.0,92094.0,0.0705865]
[1764703694581,0.0594571,92095.0,92094.0,0.06073]
[1764703694776,0.0594571,92095.0,92094.0,0.06173]
[1764703699389,0.0594571,92095.0,92094.0,0.03178]
[1764703699590,0.0594571,92095.0,92094.0,0.06173]
[1764703702384,0.0001071,92095.0,92094.0,0.06173]
[1764703702583,0.0296571,92095.0,92094.0,0.06173]
[1764703702804,0.0594571,92095.0,92094.0,0.06173]
[1764703703292,0.0296571,92095.0,92094.0,0.06173]
[1764703705380,0.0001071,92095.0,92094.0,0.06173]
[1764703705786,0.0296571,92095.0,92094.0,0.06173]
[1764703705989,0.0594571,92095.0,92094.0,0.06173]
[1764703706790,0.0703134,92095.0,92094.0,0.06173]
[1764703707789,0.0594571,92095.0,92094.0,0.06173]
[1764703707982,0.0109634,92095.0,92094.0,0.06173]
[1764703708996,0.0405134,92095.0,92094.0,0.06173]
[1764703709490,0.0703134,92095.0,92094.0,0.06173]
[1764703709692,0.0296571,92095.0,92094.0,0.06173]
[1764703710690,0.0001071,92095.0,92094.0,0.06173]
[1764703711691,0.05935,92108.0,92107.0,0.05973]
[1764703713987,0.06035,92108.0,92107.0,0.05973]
[1764703724596,0.06035,92108.0,92098.0,0.05457292]
[1764703724597,0.0689959,92099.0,92098.0,0.05457292]
[1764703724898,0.0689959,92099.0,92098.0,0.00016292]
[1764703724899,0.2774095,92099.0,92098.0,0.00016292]
[1764703725088,0.1274095,92099.0,92098.0,0.00016292]
[1764703725289,0.5489959,92099.0,92098.0,0.00016292]
[1764703726098,0.5489959,92099.0,92098.0,0.00116292]
[1764703726603,0.2089959,92099.0,92098.0,0.00116292]
[1764703726801,0.0689959,92099.0,92098.0,0.00116292]
[1764703727004,0.2189959,92099.0,92098.0,0.00116292]
[1764703727305,0.3589959,92099.0,92098.0,0.00116292]
[1764703728005,0.3589959,92099.0,92070.0,0.05441]
[1764703728006,0.0689992,92071.0,92070.0,0.05441]
[1764703728505,0.0108603,92062.0,92061.0,0.05441]
[1764703728703,0.0690003,92062.0,92061.0,0.05441]
[1764703728901,0.05814,92062.0,92061.0,0.05441]
[1764703730198,0.06414,92062.0,92061.0,0.05441]
[1764703731402,0.06414,92062.0,92052.0,0.01657292]
[1764703731608,0.0690013,92053.0,92052.0,0.05457292]
[1764703731799,0.0690013,92053.0,92052.0,0.07709831]
[1764703731800,0.05814,92053.0,92052.0,0.07709831]
[1764703731997,0.05814,92053.0,92052.0,0.09350831]
[1764703732810,0.06414,92053.0,92052.0,0.09350831]
[1764703733205,0.06514,92053.0,92052.0,0.09350831]
[1764703733597,0.06414,92053.0,92052.0,0.09350831]
[1764703733795,0.06514,92053.0,92052.0,0.08264691]
[1764703734000,0.06514,92053.0,92052.0,0.09350831]
[1764703735410,0.007,92053.0,92052.0,0.09350831]
[1764703736007,0.03651,92053.0,92052.0,0.09350831]
[1764703737404,0.007,92053.0,92052.0,0.09350831]
[1764703738009,0.007,92053.0,92052.0,1e-08]
[1764703738010,0.72594,92053.0,92052.0,1e-08]
[1764703738205,0.069002,92047.0,92046.0,0.0002716]
[1764703738515,0.429802,92047.0,92046.0,0.0002716]
[1764703738916,0.429802,92047.0,92046.0,0.0275816]
[1764703739312,0.429802,92047.0,92046.0,0.0002716]
[1764703739618,0.434802,92047.0,92046.0,0.0002716]
[1764703739910,0.430802,92047.0,92046.0,0.0002716]
[1764703740104,0.436802,92047.0,92046.0,0.0002716]
[1764703740504,0.566802,92047.0,92046.0,0.0002716]
[1764703740904,0.436802,92047.0,92046.0,0.0002716]
[1764703741113,0.0690031,92038.0,92037.0,0.05457292]
[1764703741419,0.4298031,92038.0,92037.0,0.05457292]
[1764703742115,0.4348031,92038.0,92037.0,0.05457292]
[1764703742311,0.4358031,92038.0,92037.0,0.05457292]
[1764703743013,0.4358031,92038.0,92037.0,0.05519292]
[1764703743217,0.0658754,92018.0,92012.0,0.3608]
[1764703743407,0.4266754,92018.0,92001.0,0.01741]
[1764703743813,0.4266754,92018.0,92017.0,0.02713168]
[1764703744419,0.4266754,92018.0,92017.0,8.168e-05]
[1764703745225,0.5666754,92018.0,92017.0,0.00108168]
[1764703745423,0.5666754,92018.0,92017.0,0.00208168]
[1764703745715,0.8966754,92018.0,92017.0,0.00208168]
[1764703746021,0.8966754,92018.0,92008.0,0.00016301]
[1764703746022,0.0658765,92009.0,92008.0,0.00016301]
[1764703746208,0.4266765,92009.0,92008.0,0.00016301]
[1764703746925,0.42675818,92009.0,92008.0,0.00016301]
[1764703747917,0.42675818,92009.0,92008.0,0.00116301]
[1764703748319,0.42675818,92009.0,92008.0,0.00516301]
[1764703749228,0.41589168,92009.0,92008.0,0.05993301]
[1764703750324,0.41589168,92009.0,92008.0,0.07734301]
[1764703750516,0.38791168,92009.0,92008.0,0.07734301]
[1764703750718,0.36088168,92009.0,92008.0,0.07734301]
[1764703751111,0.38791168,92009.0,92008.0,0.07734301]
[1764703751526,0.41589168,92009.0,92008.0,0.07734301]
[1764703753215,0.05509168,92009.0,92008.0,0.07734301]
[1764703753811,8.168e-05,92009.0,92008.0,0.07734301]
[1764703755522,0.05517301,92027.0,92026.0,0.0656345]
[1764703755723,0.02719301,92027.0,92026.0,0.05477]
[1764703755916,0.05517301,92027.0,92026.0,0.05477]
[1764703756924,0.02719301,92027.0,92026.0,0.05477]
[1764703757223,0.05517301,92027.0,92026.0,0.05477]
[1764703757422,0.05517301,92027.0,92026.0,0.05577]
[1764703758226,0.05517301,92027.0,92026.0,0.001]
[1764703758427,0.0658754,92018.0,92017.0,0.0656354]
[1764703759915,0.05501,92018.0,92017.0,0.0656354]
[1764703760626,0.00616301,92027.0,92026.0,0.05477]
[1764703760627,0.00016301,92027.0,92026.0,0.05477]
[1764703760826,0.06603751,92027.0,92026.0,0.05477]
[1764703762331,0.07103751,92027.0,92026.0,0.05477]
[1764703762918,0.07203751,92027.0,92026.0,0.05477]
[1764703763125,0.00616301,92027.0,92026.0,0.05477]
[1764703763628,0.06117301,92027.0,92026.0,0.05477]
[1764703765130,0.06117301,92027.0,92010.0,0.03891374]
[1764703765131,0.0658752,92020.0,92019.0,0.05477]
[1764703765632,0.05501,92020.0,92019.0,0.05477]
[1764703766535,0.02803,92020.0,92019.0,0.08388012]
[1764703766731,0.001,92020.0,92019.0,0.08388012]
[1764703767036,0.001,92020.0,92019.0,0.05477]
[1764703767332,0.004,92020.0,92019.0,0.05477]
[1764703769119,0.004,92020.0,92019.0,0.09368374]
[1764703769935,0.004,92020.0,92019.0,0.05477]
[1764703770437,0.0148652,92020.0,92019.0,0.05477]
[1764703770824,0.004,92020.0,92019.0,0.05477]
[1764703772522,0.004,92020.0,92019.0,0.09376887]
[1764703774526,0.004,92020.0,92019.0,0.05477]
[1764703775245,0.004,92020.0,92019.0,0.41557]
[1764703775628,0.004,92020.0,92019.0,0.45455804]
[1764703776431,0.003,92020.0,92019.0,0.45455804]